Workbook

Sheet сводная форма
A1: Анализ бюджета | B1: Светлогорский муниципальный район | E1: по состоянию на | G1: 2021-11-01 | K1: 27634000
B2: (наименование МО) | G2: (отчетная дата)
E3: Да | F3: Нет | J3: тыс. руб.
A4: Наименование | B4: Исполнено за отч. год | C4: Уточненный бюджет на тек. год | D4: Динамика плана тек. года к исполнению отчетного, % | E4: Исполнено на аналог. дату отч. года | F4: Исполнено на отч. дату | G4: Исполнение плана, % | H4: К соответствующему периоду отчетного года, % | I4: Принятый бюджет на 2022 год | J4: Принятый бюджет на 2023 год
A5: 1. ДОХОДЫ, в том числе: | B5: =B7+B37 -> 1612093.052 | C5: =C7+C37 -> 871723.7922 | D5: =IF(C5<>0,IFERROR(C5/B5,"-"),"-") -> 0.5407403694 | E5: =E7+E37 -> 1215072.047 | F5: =F7+F37 -> 667391.5039 | G5: =IF(F5<>0,IFERROR(F5/C5,"-"),"-") -> 0.7655997345 | H5: =IF(F5<>0,IFERROR(F5/E5,"-"),"-") -> 0.5492608489 | I5: =I7+I37 -> 1133015 | J5: =J7+J37 -> 1012662.65
A6: СОБСТВЕННЫЕ ДОХОДЫ (без учета субсидий) | B6: =B7+B39+B40+B53 -> 402098.5426 | C6: =C7+C39+C40+C53 -> 550729.362 | D6: 1.369637797 | E6: =E7+E39+E40+E53 -> 282457.151 | F6: =F7+F39+F40+F53 -> 452888.589 | G6: 0.8223432783 | H6: 1.603388646 | I6: =I7+I39+I40+I53 -> 620696 | J6: =J7+J39+J40+J53 -> 585427.65
A7: НАЛОГОВЫЕ И НЕНАЛОГОВЫЕ ДОХОДЫ | B7: =B9+B26 -> 374212.6416 | C7: =C9+C26 -> 416926.4 | D7: 1.114143013 | E7: =E9+E26 -> 275550.8302 | F7: =F9+F26 -> 351072.1714 | G7: 0.8420483121 | H7: 1.274074083 | I7: =I9+I26 -> 615462 | J7: =J9+J26 -> 580193.65
A8: ННД и дотации на выравнивание БО | B8: =B7+B39 -> 381394.6416 | C8: =C7+C39 -> 425527.4 | D8: 1.115714154 | E8: =E7+E39 -> 281584.8302 | F8: =F7+F39 -> 358297.0114 | G8: 0.8420069105 | H8: 1.272430092 | I8: =I7+I39 -> 615462 | J8: =J7+J39 -> 580193.65
A9: Налоговые доходы, всего: | B9: =B11+B17+B18+B19+B20+B21+B22+B23+B24+B25 -> 231613.7514 | C9: =C11+C17+C18+C19+C20+C21+C22+C23+C24+C25 -> 258074.41 | D9: 1.114244765 | E9: =E11+E17+E18+E19+E20+E21+E22+E23+E24+E25 -> 163621.4249 | F9: =F11+F17+F18+F19+F20+F21+F22+F23+F24+F25 -> 238831.4677 | G9: 0.9254364573 | H9: 1.459658892 | I9: =I11+I17+I18+I19+I20+I21+I22+I23+I24+I25 -> 316246 | J9: =J11+J17+J18+J19+J20+J21+J22+J23+J24+J25 -> 294561
A10: Налоговые доходы, без доп.норматива по НДФЛ: | B10: =B9-B14 -> 221826.9572 | C10: =C9-C14 -> 248069.5009 | D10: 1.11830187 | E10: =E9-E14 -> 156586.1347 | F10: =F9-F14 -> 230044.5489 | G10: 0.9273391046 | H10: 1.469124641 | I10: =I9-I14 -> 316246 | J10: =J9-J14 -> 294561
A11: - НДФЛ, всего: | B11: 107654.7366 | C11: 110054 | D11: 1.02228665 | E11: 77388.1926 | F11: 96656.1073 | G11: 0.8782607384 | H11: 1.248977448 | I11: 149500 | J11: 128820
A12: контенгент по НДФЛ | B12: =IFERROR(B11*100/(B15+B16),"-") -> 326226.4745 | C12: =IFERROR(C11*100/(C15+C16),"-") -> 333496.9697 | D12: 1.02228665 | E12: =IFERROR(E11*100/(E15+E16),"-") -> 234509.6745 | F12: =IFERROR(F11*100/(F15+F16),"-") -> 292897.2948 | G12: 0.8782607384 | H12: 1.248977448 | I12: =IFERROR(I11*100/(I15+I16),"-") -> 498333.3333 | J12: =IFERROR(J11*100/(J15+J16),"-") -> 429400
A13: дотации заменённые на доп.норматив | B13: 45250 | C13: 11247 | D13: =C14-C13 -> -1242.090909 | E13: =IF(B14<>0,IFERROR(E14/B14*B13,0),0) -> 32528.20847 | F13: =IF(B14<>0,IFERROR(E14/B14*C13,0),0) -> 8084.967087 | H13: =IFERROR(F14-F13,0) -> 701.9517584 | I13: 22621 | J13: 0
A14: поступление по допнормативу по НДФЛ | B14: =IFERROR((B11/(B15+B16))*B16,0) -> 9786.794236 | C14: =IFERROR((C11/(C15+C16))*C16,0) -> 10004.90909 | E14: =IFERROR((E11/(E15+E16))*E16,0) -> 7035.290236 | F14: =IFERROR((F11/(F15+F16))*F16,0) -> 8786.918845 | I14: =IFERROR((I11/(I15+I16))*I16,0) -> 0 | J14: =IFERROR((J11/(J15+J16))*J16,0) -> 0
A15: норматив по БК РФ и ЗКО "О МБО", % | B15: 30 | C15: 30 | D15: =IF(C15<>0,IFERROR(C15/B15,"-"),"-") -> 1 | E15: 30 | F15: 30 | G15: =IF(F15<>0,IFERROR(F15/C15,"-"),"-") -> 1 | H15: =IF(F15<>0,IFERROR(F15/E15,"-"),"-") -> 1 | I15: 30 | J15: 30
A16: дополнительный норматив, % | B16: 3 | C16: 3 | D16: 1 | E16: 3 | F16: 3 | G16: 1 | H16: 1 | I16: 0 | J16: 0
A17: - УСНО | B17: 21114.4304 | C17: 34440 | D17: 1.631111962 | E17: 19507.1468 | F17: 43103.7429 | G17: 1.251560479 | H17: 2.209638516 | I17: 46412 | J17: 47790
A18: - патент | B18: 425.3868 | C18: 8539 | D18: 20.07349546 | E18: 297.4383 | F18: 7254.7233 | G18: 0.8495987001 | H18: 24.39068304 | I18: 9750 | J18: 10320
A19: - ЕСХН | B19: 0 | C19: 8490.5 | D19: - | E19: 0 | F19: 8490.5006 | G19: 1.000000071 | H19: -
A20: - ЕНВД | B20: 17491.34 | C20: 5474.58 | D20: 0.3129880272 | E20: 16660.2311 | F20: 5605.4057 | G20: 1.023896938 | H20: 0.3364542584
A21: - налог на имущество физических лиц | B21: 14248.1462 | C21: 17570 | D21: 1.233142877 | E21: 5474.9436 | F21: 5203.2682 | G21: 0.2961450313 | H21: 0.9503784112 | I21: 24500 | J21: 25580
A22: - налог на имущество организаций | B22: 13577.1598 | C22: 15064 | D22: 1.1095104 | E22: 9831.1364 | F22: 17635.2617 | G22: 1.170689173 | H22: 1.793817213 | I22: 20780 | J22: 20057
A23: - земельный налог | B23: 46651.7647 | C23: 47506.1 | D23: 1.018313033 | E23: 25882.405 | F23: 45969.5627 | G23: 0.967656 | H23: 1.776093168 | I23: =46600+7220 -> 53820 | J23: =43040+7290 -> 50330
A24: - акцизы на ГСМ | B24: 5793.507 | C24: 6631.23 | D24: 1.144596874 | E24: 4826.3364 | F24: 5532.394 | G24: 0.8342937886 | H24: 1.146292662 | I24: 7004 | J24: 7004
A25: - прочие налоговые доходы | B25: 4657.2799 | C25: 4305 | D25: 0.9243593025 | E25: 3753.5947 | F25: 3380.5013 | G25: 0.7852500116 | H25: 0.9006037066 | I25: 4480 | J25: 4660
A26: Неналоговые доходы, всего: | B26: =B27+B30+B31+B32+B33+B34+B36+B35 -> 142598.8902 | C26: =C27+C30+C31+C32+C33+C34+C36+C35 -> 158851.99 | D26: 1.113977744 | E26: =E27+E30+E31+E32+E33+E34+E36+E35 -> 111929.4053 | F26: =F27+F30+F31+F32+F33+F34+F36+F35 -> 112240.7037 | G26: 0.7065741115 | H26: 1.002781203 | I26: =I27+I30+I31+I32+I33+I34+I36+I35 -> 299216 | J26: =J27+J30+J31+J32+J33+J34+J36+J35 -> 285632.65
A27: - доходы, от аренды земли и продажи права аренды | B27: 112463.1485 | C27: 100000 | D27: 0.8891801566 | E27: 87151.2138 | F27: 90726.0608 | G27: 0.907260608 | H27: 1.041018901 | I27: 113000 | J27: 253707
A28: аренда земли | B28: 112463 | C28: 100000 | D28: 0.8891813307 | E28: 87151 | F28: 90726 | G28: 0.90726 | H28: 1.041020757 | I28: 113000 | J28: =220592+33115 -> 253707
A29: продажа права аренды | D29: - | G29: - | H29: -
A30: - доходы от использования имущества | B30: 5740.7256 | C30: 5633.58 | D30: 0.9813358785 | E30: 4511.2643 | F30: 5184.7971 | G30: 0.9203378846 | H30: 1.149300231 | I30: 1053 | J30: 1053
A31: - доходы от продажи имущества | B31: 272.6862 | C31: 31407.3 | D31: 115.1774457 | E31: 223.5418 | F31: 194.6447 | G31: 0.006197434991 | H31: 0.8707306642 | I31: 32030 | J31: 10046
A32: - доходы от продажи земли | B32: 12809.2475 | C32: 10000 | D32: 0.7806859849 | E32: 11045.9089 | F32: 8087.7614 | G32: 0.80877614 | H32: 0.7321951931
A33: - доходы от оказания платных услуг (работ) | B33: 167.2276 | C33: 1053.6 | D33: 6.300395389 | E33: 145.2997 | F33: 1073.2302 | G33: 1.018631549 | H33: 7.386320825 | I33: 276 | J33: 276
A34: - административные штрафы | B34: 6110.6117 | C34: 5500 | D34: 0.9000735556 | E34: 4832.9142 | F34: 2912.1583 | G34: 0.5294833273 | H34: 0.6025677634 | I34: 4000 | J34: 4000
A35: - платежи при использовании природных ресурсов | B35: 115.2664 | C35: 106 | D35: 0.9196088366 | E35: 115.2664 | F35: 8.1197 | G35: 0.0766009434 | H35: 0.07044290444 | I35: 308 | J35: 8
A36: - прочие неналоговые доходы | B36: 4919.9767 | C36: 5151.51 | D36: 1.047059837 | E36: 3903.9962 | F36: 4053.9315 | G36: 0.7869404311 | H36: 1.038405596 | I36: =567+3680+144302 -> 148549 | J36: =45715.25-33115.6+3354+589 -> 16542.65
A37: ИТОГО БЕЗВОЗМЕЗДНЫЕ ПОСТУПЛЕНИЯ | B37: =B38++B55+B56 -> 1237880.41 | C37: =C38+C55+C56 -> 454797.3922 | D37: 0.3674001047 | E37: =E38+E55+E56 -> 939521.2165 | F37: =F38+F55+F56 -> 316319.3325 | G37: 0.6955170323 | H37: 0.3366814149 | I37: =I38+I55+I56 -> 517553 | J37: =J38+J55+J56 -> 432469
A38: Безвозмездные поступления от других бюджетов БС РФ | B38: =B39+B40+B41+B48+B53 -> 1207953.95 | C38: =C39+C40+C41+C48+C53 -> 365450.3522 | D38: 0.302536659 | E38: =E39+E40+E41+E48+E53 -> 909594.7566 | F38: =F39+F40+F41+F48+F53 -> 292165.1593 | G38: 0.7994660767 | H38: 0.3212036538 | I38: =I39+I40+I41+I48+I53 -> 466389 | J38: =J39+J40+J41+J48+J53 -> 432469
A39: - дотации на выравнивание БО** | B39: 7182 | C39: 8601 | D39: 1.197577277 | E39: 6034 | F39: 7224.84 | G39: 0.84 | H39: 1.197354988
A40: - иные межбюджетные трансферты в форме дотаций | B40: 0 | C40: 7365 | D40: - | E40: 0 | F40: 7365 | G40: 1 | H40: -
A41: Субсидии всего, в том числе | B41: 1020707.049 | C41: 58268.3902 | D41: 0.05708630136 | E41: 770217.4358 | F41: 39051.7417 | G41: 0.6702045752 | H41: 0.05070223016 | I41: =68470+214496 -> 282966 | J41: 244891
A42: - субсидии на текущие расходы, в том числе | B42: 112627 | C42: 58268 | D42: 0.5173537429 | E42: 676381 | F42: 39052 | G42: 0.6702134963 | H42: 0.05773668982 | I42: 68470 | J42: 21625
A43: за счет средств федерального бюджета | D43: - | G43: - | H43: -
A44: за счет средств областного бюджета | B44: 112627 | C44: 58268 | E44: 676381 | F44: 39052 | I44: 68470 | J44: 21625
A45: - субсидии на капитальные расходы, в том числе | B45: 908080 | D45: =IF(C45<>0,IFERROR(C45/B45,"-"),"-") -> - | E45: 93836 | G45: =IF(F45<>0,IFERROR(F45/C45,"-"),"-") -> - | H45: =IF(F45<>0,IFERROR(F45/E45,"-"),"-") -> - | I45: 214496 | J45: 223266
A46: за счет средств федерального бюджета | D46: =IF(C46<>0,IFERROR(C46/B46,"-"),"-") -> - | G46: =IF(F46<>0,IFERROR(F46/C46,"-"),"-") -> - | H46: =IF(F46<>0,IFERROR(F46/E46,"-"),"-") -> -
A47: за счет средств областного бюджета | B47: 908080 | E47: 93836 | I47: 214496.3 | J47: 223266
A48: - субвенции, всего, в т.ч.: | B48: =B49+B50+B51+B52 -> 159361 | C48: =C49+C50+C51+C52 -> 173379 | D48: =IF(C48<>0,IFERROR(C48/B48,"-"),"-") -> 1.087963805 | E48: =E49+E50+E51+E52 -> 132471 | F48: =F49+F50+F51+F52 -> 151297 | G48: =IF(F48<>0,IFERROR(F48/C48,"-"),"-") -> 0.8726374013 | H48: =IF(F48<>0,IFERROR(F48/E48,"-"),"-") -> 1.142114123 | I48: =I49+I50+I51+I52 -> 178189 | J48: =J49+J50+J51+J52 -> 182344
A49: образование, всего | B49: 141764 | C49: 154864 | D49: 1.092407099 | E49: 116970 | F49: 135825 | G49: 0.8770598719 | H49: 1.161195178 | I49: =178189 -> 178189 | J49: 182344
A50: сельское хозяйство | D50: - | G50: - | H50: -
A51: социальная политика | B51: 15285 | C51: 15579 | D51: 1.019234544 | E51: 14372 | F51: 13495 | G51: 0.8662301817 | H51: 0.9389785694
A52: прочие субвенции | B52: 2312 | C52: 2936 | D52: 1.269896194 | E52: 1129 | F52: 1977 | G52: 0.6733651226 | H52: 1.751107174
A53: - иные межбюджетные трансферты всего, в том числе | B53: 20703.901 | C53: 117836.962 | D53: 5.691534267 | E53: 872.3208 | F53: 87226.5776 | G53: 0.7402310457 | H53: 99.99369223 | I53: 5234 | J53: 5234
A54: за счет средств федерального бюджета | G54: - | H54: -
A55: Прочие безвозмездные поступления | B55: 30510.0032 | C55: 89347.04 | D55: =IF(C55<>0,IFERROR(C55/B55,"-"),"-") -> 2.928450693 | E55: 30510.0032 | F55: 24523.8478 | G55: 0.2744785703 | H55: 0.8037969593 | I55: 51164
A56: Доходы от возврата и возврат остатков МБТ | B56: -583.5433 | C56: 0 | D56: - | E56: -583.5433 | F56: -369.6746 | G56: - | H56: 0.633499862
A57: 2. РАСХОДЫ, в том числе: | B57: 1626212.933 | C57: 900662.3497 | D57: 0.5538403559 | E57: 1212029.767 | F57: 609636.9566 | G57: 0.6768762531 | H57: 0.5029884356 | I57: =SUM(I58:I62)+I67+I68 -> 1188823 | J57: =SUM(J58:J62)+J67+J68 -> 1062663
A58: - ФБ | D58: - | G58: - | H58: -
A59: - ОБ Субвенции | B59: 159018 | C59: 173379 | D59: 1.090310531 | E59: 130814 | F59: 150473 | G59: 0.8678848073 | H59: 1.15028208 | I59: 178189 | J59: 182344
A60: - ОБ Субсидии | B60: 1020707 | C60: 58268 | D60: 0.05708592182 | E60: 770095 | F60: 38911 | G60: 0.6677936432 | H60: 0.05052753232 | I60: 282966 | J60: 244891
A61: - ОБ Иные | D61: - | G61: - | H61: -
A62: - МБ, всего, в т.ч.: | B62: 403543 | C62: 484484 | D62: 1.200575899 | E62: 285293 | F62: 319181 | G62: 0.65880607 | H62: 1.118783146 | I62: 674910 | J62: 630194
A63: субсидии МУП | D63: - | G63: - | H63: -
A64: объем необеспеченных гарантий | D64: - | G64: - | H64: -
A65: субсидии на муниципальное задание | D65: - | G65: - | H65: -
A66: субсидии муницпальным учреждениям на иные цели | D66: - | G66: - | H66: -
A67: - ИМБ | B67: 3281 | C67: 117837 | D67: 35.91496495 | E67: 846 | F67: 77150 | G67: 0.6547179579 | H67: 91.19385343 | I67: 5234 | J67: 5234
A68: - ИБП | B68: 39664 | C68: 66694 | D68: 1.681474385 | E68: 24982 | F68: 23922 | G68: 0.35868294 | H68: 0.95756945 | I68: 47524
A69: Расходы на капитальные вложения | B69: 944255.4429 | C69: 2760.9 | D69: 0.002923891009 | E69: 700733.2215 | F69: 370 | G69: 0.1340142707 | H69: 0.0005280183508 | I69: =SUM(I70:I72,I74:I77) -> 326129.3 | J69: =SUM(J70:J72,J74:J77) -> 446532
A70: - ФБ | D70: - | G70: - | H70: -
A71: - ОБ Субвенции | D71: - | G71: - | H71: -
A72: - ОБ Субсидии | B72: 928606 | D72: - | E72: 698652 | G72: - | H72: - | I72: 214496.3 | J72: 223266
A73: доля субсидий из ОБ, % | B73: =IF((B71+B72+B75)<>0,IFERROR(B72/(B71+B72+B75),0),0) -> 0.9834271463 | C73: =IF((C71+C72+C75)<>0,IFERROR(C72/(C71+C72+C75),0),0) -> 0 | E73: =IF((E71+E72+E75)<>0,IFERROR(E72/(E71+E72+E75),0),0) -> 0.9970302526 | F73: =IF((F71+F72+F75)<>0,IFERROR(F72/(F71+F72+F75),0),0) -> 0 | I73: =IF((I71+I72+I75)<>0,IFERROR(I72/(I71+I72+I75),0),0) -> 0.6577032484 | J73: =IF((J71+J72+J75)<>0,IFERROR(J72/(J71+J72+J75),0),0) -> 0.5
A74: - ОБ Иные | D74: =IF(C74<>0,IFERROR(C74/B74,"-"),"-") -> - | G74: =IF(F74<>0,IFERROR(F74/C74,"-"),"-") -> - | H74: =IF(F74<>0,IFERROR(F74/E74,"-"),"-") -> -
A75: - МБ | B75: 15649 | C75: 2761 | D75: 0.1764329989 | E75: 2081 | F75: 370 | G75: 0.1340094169 | H75: 0.177799135 | I75: 111633 | J75: 223266
A76: - ИМБ | D76: - | G76: - | H76: -
A77: - ИБП | D77: - | G77: - | H77: -
A78: Расходы на содержание ОМС, всего, в т.ч.: | D78: - | G78: - | H78: -
A79: расходы на содержание ОМС (без учёта 243 и 400 КВР) | B79: 48712 | C79: 53567 | D79: 1.099667433 | E79: 37025 | F79: 39419 | G79: 0.7358821663 | H79: 1.064659014
A80: заработная плата (211 КОСГУ) | B80: 35635 | C80: 38172 | D80: 1.071194051 | E80: 27420 | F80: 29126 | G80: 0.7630200147 | H80: 1.06221736
A81: Норматив расходов на содержание ОМС | B81: 60345 | C81: 60920 | D81: 1.009528544 | E81: 50288 | F81: 50766.6667 | G81: 0.8333333339 | H81: 1.009518507
A82: выполнение норматива | B82: =B81-B79 -> 11633 | C82: =C81-C79 -> 7353 | D82: 0.6320811485 | E82: =E81-E79 -> 13263 | F82: =F81-F79 -> 11347.6667 | G82: 1.543270325 | H82: 0.8555882304 | I82: =I81-I79 -> 0 | J82: =J81-J79 -> 0
A83: Численность работников ОМС, ед.*** | B83: 51 | C83: 52 | D83: 1.019607843 | E83: 52 | F83: 51 | G83: 0.9807692308 | H83: 0.9807692308
A84: Расходы на содержание казённых учреждений, в т.ч.: | B84: 45318 | C84: 41012 | D84: 0.9049825676 | E84: 34731 | F84: 31781 | G84: 0.7749195357 | H84: 0.9150614725
A85: заработная плата (211 КОСГУ) | B85: 27068 | C85: 23512 | E85: 21277 | F85: 18693 | G85: 0.7950408302 | H85: 0.8785543075
A86: Численность работников казённых учрежд., ед.*** | B86: 75 | C86: 60 | E86: 75 | F86: 54 | G86: 0.9 | H86: 0.72
A87: Расходы на обслуживание муниципального долга | B87: 796.4894 | C87: 0 | D87: =IF(C87<>0,IFERROR(C87/B87,"-"),"-") -> - | E87: 792.2271 | F87: 0 | G87: - | H87: -
A88: в процентах к расходам | B88: =IFERROR(B87/B57,0) -> 0.00048978174 | C88: =IFERROR(C87/C57,0) -> 0 | E88: =IFERROR(E87/E57,0) -> 0.0006536366691 | F88: =IFERROR(F87/F57,0) -> 0 | G88: - | H88: - | I88: =IFERROR(I87/I57,0) -> 0 | J88: =IFERROR(J87/J57,0) -> 0
A89: Расходы, не отнесенные к вопросам местного значения | D89: =IF(C89<>0,IFERROR(C89/B89,"-"),"-") -> - | G89: - | H89: -
A90: ПРОФИЦИТ ( + ) / ДЕФИЦИТ ( - ) | B90: =B5-B57 -> -14119.8817 | C90: =C5-C57 -> -28938.5575 | D90: - | E90: =E5-E57 -> 3042.2793 | F90: =F5-F57 -> 57754.5473 | G90: -1.995764554 | H90: 18.98397274 | I90: =I5-I57 -> -55808 | J90: =J5-J57 -> -50000.35
A91: Сложившийся уровень дефицита | B91: =IFERROR((-(B90/(B7-B14))),"-") -> 0.03874555497 | C91: =IFERROR((-(C90/(C7-C14))),"-") -> 0.07111582491 | D91: - | E91: =IFERROR((-(E90/(E7-E14))),"-") -> -0.01132999342 | F91: =IFERROR((-(F90/(F7-F14))),"-") -> -0.1687322105 | G91: -2.372639434 | H91: 14.89252503 | I91: =IFERROR((-(I90/(I7-I14))),"-") -> 0.09067659742 | J91: =IFERROR((-(J90/(J7-J14))),"-") -> 0.08617872671
A92: Предельный размер дефицита | B92: =(B7-B14)*IF(B119="да",0.05,0.1)+IF(B110>0,B110,0) -> 71886.77844 | C92: =(C7-C14)*IF(C119="да",0.05,0.1)+IF(C110>0,C110,0) -> 69520.83659 | D92: - | F92: =(F7-F14)*IF(F119="да",0.05,0.1)+IF(F110>0,F110,0) -> 34228.52526 | G92: 0.4923491565 | H92: - | I92: =(I7-I14)*IF(I119="да",0.05,0.1)+IF(I110>0,I110,0) -> 117354.2 | J92: =(J7-J14)*IF(J119="да",0.05,0.1)+IF(J110>0,J110,0) -> 58019.715
A93: Уровень дефицита/профицита | B93: =IFERROR(((B90+IF(B110>0,B110,0))/(B7-B14)),"-") -> 0.05851481764 | C93: =IFERROR(((C90+IF(C110>0,C110,0))/(C7-C14)),"-") -> -0.0002700029427 | D93: - | E93: =IFERROR(((E90+IF(E110>0,E110,0))/(E7-E14)),"-") -> 0.05171110395 | F93: =IFERROR(((F90+IF(F110>0,F110,0))/(F7-F14)),"-") -> 0.1687322105 | I93: =IFERROR(((I90+IF(I110>0,I110,0))/(I7-I14)),"-") -> 0 | J93: =IFERROR(((J90+IF(J110>0,J110,0))/(J7-J14)),"-") -> -0.08617812346
A94: Изменение долга | C94: =C113-B113 -> 0 | D94: - | F94: =F113-E113 -> 0 | G94: =IF(F94<>0,IFERROR(F94/C94,"-"),"-") -> - | H94: =IF(F94<>0,IFERROR(F94/E94,"-"),"-") -> -
A95: ИСТОЧНИКИ ФИНАНСИРОВАНИЯ ДЕФИЦИТА БЮДЖЕТА | B95: =B96+B99+B102+B103+B106+B109+B110 -> 14119.8817 | C95: =C96+C99+C102+C103+C106+C109+C110 -> 28938.5575 | D95: - | E95: =E96+E99+E102+E103+E106+E109+E110 -> -3042.3725 | F95: =F96+F99+F102+F103+F106+F109+F110 -> -57755.3755 | G95: -1.995793173 | H95: 18.98366341 | I95: =I96+I99+I102+I103+I106+I109+I110 -> 55808 | J95: =J96+J99+J102+J103+J106+J109+J110 -> 50000.35
A96: - бюджетные кредиты полученные | B96: =B98+B97 -> -1555.25 | C96: =C98+C97 -> 0 | D96: - | E96: =E98+E97 -> -1555.25 | F96: =F98+F97 -> 0 | G96: - | H96: - | I96: =I98+I97 -> 0 | J96: =J98+J97 -> 50000
A97: получение бюджетных кредитов | D97: - | G97: - | H97: - | J97: 50000
A98: погашение бюджетных кредитов | B98: -1555.25 | C98: 0 | D98: - | E98: -1555.25 | F98: 0 | G98: - | H98: -
A99: - коммерческие кредиты | B99: =B100+B101 -> -25000 | C99: =C100+C101 -> 0 | D99: - | E99: =E100+E101 -> -18500 | F99: =F100+F101 -> 0 | G99: - | H99: - | I99: =I100+I101 -> 0 | J99: =J100+J101 -> 0
A100: получение кредитов | B100: 0 | C100: 0 | D100: - | E100: 0 | F100: 0 | G100: - | H100: -
A101: погашение кредитов | B101: -25000 | C101: 0 | D101: - | E101: -18500 | F101: 0 | G101: - | H101: -
A102: - исполнение муниципальных гарантий | B102: 0 | C102: 0 | D102: - | E102: 0 | F102: 0 | G102: - | H102: -
A103: - бюджетные кредиты бюджетам | B103: =B104+B105 -> 0 | C103: =C104+C105 -> 0 | D103: - | E103: =E104+E105 -> 0 | F103: =F104+F105 -> 0 | G103: - | H103: - | I103: =I104+I105 -> 0 | J103: =J104+J105 -> 0
A104: предоставление бюджетных кредитов | D104: - | G104: - | H104: -
A105: возврат бюджетных кредитов | D105: - | G105: - | H105: -
A106: - бюджетные кредиты юрлицам | B106: =B107+B108 -> 2.79 | C106: =C107+C108 -> 109.87 | D106: - | E106: =E107+E108 -> 0 | F106: =F107+F108 -> 1.86 | G106: 0.01692909802 | H106: - | I106: =I107+I108 -> 0 | J106: =J107+J108 -> 0
A107: предоставление бюджетных кредитов юрлицам | D107: - | G107: - | H107: -
A108: возврат бюджетных кредитов | B108: 2.79 | C108: 109.87 | D108: - | E108: 0 | F108: 1.86 | G108: 0.01692909802 | H108: -
A109: - иные источники финансирования дефицита | B109: 5228.148 | C109: 0 | D109: - | E109: 6169.9218 | F109: -1459.5233 | G109: - | H109: -0.2365545865
A110: - изменение остатков средств на счетах: | B110: =B111+B112 -> 35444.1937 | C110: =C111+C112 -> 28828.6875 | D110: - | E110: =E111+E112 -> 10842.9557 | F110: =F111+F112 -> -56297.7122 | G110: -1.952836465 | H110: -5.192100176 | I110: =I111+I112 -> 55808 | J110: =J111+J112 -> 0.3500000001
A111: увеличение остатков бюджетных средств | B111: =-B5-B97-B100-B105-B108-B109 -> -1617323.99 | C111: =-C5-C97-C100-C105-C108-C109 -> -871833.6622 | D111: - | E111: -1338493.522 | F111: -745379.3767 | G111: 0.8549559498 | H111: 0.5568793308 | I111: =-I5-I97-I100-I105-I108-I109 -> -1133015 | J111: =-J5-J97-J100-J105-J108-J109 -> -1062662.65
A112: уменьшение остатков бюджетных средств | B112: =B57-B98-B101-B102-B104-B107 -> 1652768.183 | C112: =C57-C98-C101-C102-C104-C107 -> 900662.3497 | D112: - | E112: 1349336.477 | F112: 689081.6645 | G112: 0.7650832354 | H112: 0.5106818618 | I112: =I57-I98-I101-I102-I104-I107 -> 1188823 | J112: =J57-J98-J101-J102-J104-J107 -> 1062663
A113: Муниципальный долг**** | B113: =B114+B115+B116 -> 0 | C113: =C114+C115+C116 -> 0 | D113: =IF(C113<>0,IFERROR(C113/B113,"-"),"-") -> - | E113: =E114+E115+E116 -> 0 | F113: =F114+F115+F116 -> 0 | G113: - | H113: - | I113: =I114+I115+I116 -> 0 | J113: =J114+J115+J116 -> 0
A114: - бюджетные кредиты | D114: - | G114: - | H114: -
A115: - коммерческие кредиты | D115: - | G115: - | H115: -
A116: - гарантии | D116: - | G116: - | H116: -
A117: Верхний предел муниципального долга | D117: - | G117: - | H117: -
A118: Предельный уровень муниципального долга | B118: =(B7-B14)*IF(B119="нет",1,0.5) -> 364425.8474 | C118: =(C7-C14)*IF(C119="нет",1,0.5) -> 406921.4909 | D118: 1.11660985 | E118: =(E7-E14)*IF(E119="нет",1,0.5) -> 268515.54 | F118: =(F7-F14)*IF(F119="нет",1,0.5) -> 342285.2526 | G118: 0.8411579634 | H118: 1.274731632 | I118: =(I7-I14)*IF(I119="нет",1,0.5) -> 615462 | J118: =(J7-J14)*IF(J119="нет",1,0.5) -> 580193.65
A119: Применение ограничений по п. 4 ст. 136 БК РФ | B119: Нет | C119: Нет | D119: - | E119: Нет | F119: Нет | G119: - | H119: - | I119: Нет | J119: Нет
A120: уровень муниципального долга | B120: =IFERROR(B113/(B7-B14),"-") -> 0 | C120: =IFERROR(C113/(C7-C14),"-") -> 0 | D120: - | E120: =IFERROR(E113/(E7-E14),"-") -> 0 | F120: =IFERROR(F113/(F7-F14),"-") -> 0 | G120: - | H120: - | I120: =IFERROR(I113/(I7-I14),"-") -> 0 | J120: =IFERROR(J113/(J7-J14),"-") -> 0
A121: Остатки**** | B121: =B122+B129 -> 81490 | C121: =C122+C129 -> 47318 | D121: =IF(C121<>0,IFERROR(C121/B121,"-"),"-") -> 0.5806602037 | E121: =E122+E129 -> 4481 | F121: =F122+F129 -> 103612.9806 | G121: =IF(F121<>0,IFERROR(F121/C121,"-"),"-") -> 2.189715977 | H121: =IF(F121<>0,IFERROR(F121/E121,"-"),"-") -> 23.12273613 | I121: =I122+I129 -> 0 | J121: =J122+J129 -> 0
A122: муниципального образования всего, в том числе: | B122: =B123+B124+B128 -> 81490 | C122: =C123+C124+C128 -> 47318 | D122: 0.5806602037 | E122: =E123+E124+E128 -> 4481 | F122: =F123+F124+F128 -> 103612.9806 | G122: 2.189715977 | H122: 23.12273613 | I122: =I123+I124+I128 -> 0 | J122: =J123+J124+J128 -> 0
A123: - целевых средств | B123: 584 | C123: 370 | D123: 0.6335616438 | E123: 5303 | F123: 11041.6447 | G123: 29.84228297 | H123: 2.082150613
A124: - нецелевых средств в том числе: | B124: 80906 | C124: 46948 | D124: 0.5802783477 | E124: -822 | F124: 92571.3359 | G124: 1.97178444 | H124: -112.617197
A125: - средств дорожного фонда | D125: - | G125: - | H125: -
A126: - гранты (с расшифовкой) | D126: - | G126: - | H126: -
A127: - спонсорская/благотворительная помощь (с расшифровкой) | D127: - | G127: - | H127: -
A128: - по прочим безвозмездным поступлениям | D128: - | G128: - | H128: -
A129: Автономных и бюджетных учреждений | D129: - | G129: - | H129: -
A130: Просроч. кредиторская задолженность (ПКЗ)**** | B130: =B139+B131+B136 -> 47271 | C130: =C139+C131+C136 -> 22991 | D130: 0.486365848 | E130: =E139+E131+E136 -> 48700 | F130: =F139+F131+F136 -> 25171.1 | G130: 1.094824062 | H130: 0.5168603696 | I130: =I139+I131+I136 -> 0 | J130: =J139+J131+J136 -> 0
A131: - ПКЗ по ОМС и казенным учреждениям, всего, в т.ч.: | B131: 14760 | D131: - | E131: 17668 | G131: - | H131: -
A132: по з/п | D132: - | G132: - | H132: -
A133: по налогам и сборам | D133: - | G133: - | H133: -
A134: во внебюджетные фонды
A135: доля задолженности в расходах, % | B135: =IFERROR(B131/B57,"-") -> 0.009076302186 | C135: =IFERROR(C131/C57,"-") -> 0 | D135: =IF(C135<>0,IFERROR(C135/B135,"-"),"-") -> - | G135: =IF(F135<>0,IFERROR(F135/C135,"-"),"-") -> - | H135: =IF(F135<>0,IFERROR(F135/E135,"-"),"-") -> - | I135: =IFERROR(I131/I57,"-") -> 0 | J135: =IFERROR(J131/J57,"-") -> 0
A136: - ПКЗ автономных и бюджетных учреждений, в т.ч.: | D136: =IF(C136<>0,IFERROR(C136/B136,"-"),"-") -> - | E136: 211 | G136: =IF(F136<>0,IFERROR(F136/C136,"-"),"-") -> - | H136: =IF(F136<>0,IFERROR(F136/E136,"-"),"-") -> -
A137: отношение к субсидированию муниципальных заданий, % | B137: =IFERROR(B136/B65,"-") -> - | C137: =IFERROR(C136/C65,"-") -> - | D137: =IF(C137<>0,IFERROR(C137/B137,"-"),"-") -> - | E137: =IFERROR(E136/E65,"-") -> - | G137: =IF(F137<>0,IFERROR(F137/C137,"-"),"-") -> - | H137: =IF(F137<>0,IFERROR(F137/E137,"-"),"-") -> - | I137: =IFERROR(I136/I65,"-") -> - | J137: =IFERROR(J136/J65,"-") -> -
A138: оспоренная в судебном порядке
A139: - ПКЗ МУП (МКП), всего, в т.ч.:***** | B139: =B141+B140 -> 32511 | C139: =C141+C140 -> 22991 | D139: =IF(C139<>0,IFERROR(C139/B139,"-"),"-") -> 0.7071760327 | E139: =E141+E140 -> 30821 | F139: =F141+F140 -> 25171.1 | G139: =IF(F139<>0,IFERROR(F139/C139,"-"),"-") -> 1.094824062 | H139: =IF(F139<>0,IFERROR(F139/E139,"-"),"-") -> 0.8166866747 | I139: =I141+I140 -> 0 | J139: =J141+J140 -> 0
A140: действующие МУП***** | B140: 32511 | C140: 22991 | D140: =IF(C140<>0,IFERROR(C140/B140,"-"),"-") -> 0.7071760327 | E140: 30821 | F140: 25171.1 | G140: =IF(F140<>0,IFERROR(F140/C140,"-"),"-") -> 1.094824062 | H140: =IF(F140<>0,IFERROR(F140/E140,"-"),"-") -> 0.8166866747
A141: МУП, находящиееся на стадии ликвидации*****
A142: оспоренная в судебном порядке
A143: Просроч. дебиторская задолженность всего, в т.ч.:**** | B143: =B144 -> 234250 | C143: =C144 -> 143159 | F143: =F144 -> 138449
A144: по арендной плате за землю и имущество находящееся в муниципальной собственности всего, в т.ч.: | B144: 234250 | C144: 143159 | F144: 138449
A145: оспоренная в судебном порядке
A146: находится в процедуре взыскания в Управлении Федеральной службы судебных приставов
A147: Просроч. дебиторская задолженность МУП всего, в т.ч.:*****
A148: оспоренная в судебном порядке | D148: =IF(C148<>0,IFERROR(C148/B148,"-"),"-") -> - | G148: =IF(F148<>0,IFERROR(F148/C148,"-"),"-") -> - | H148: =IF(F148<>0,IFERROR(F148/E148,"-"),"-") -> -
A149: *- В графе динамика указываются итоги замены дотаций на дополнительный норматив по НДФЛ
A150: **- В графе динамика указывается динамика с учетом поступлений дополнительного норматива по НДФЛ
A151: *** - в плановых назначениях указывается штатная численность, в фактических - среднесписочная численность
A152: **** - указываются данные по состоянию на 01 января отчетного/текущего года,на отчетную дату и аналогичн. дату отчетного года | I152: Данные изменены | J152: 2021-11-22T11:19:21
A153: ***** - также указываются хозяйственные общества со 100% муниципальным участием

Sheet Служебный (hidden)
A1: #parm1Tmplt1 | C1: Всего** | D1: =SUM(D4:D5)-D2 -> 0 | E1: =SUM(E4:E5)-E2 -> 0 | F1: =SUM(F4:F5)-F2 -> 0 | G1: =IF(D1<>0,IFERROR(F1/D1,"-"),"-") -> - | H1: =SUM(H4:H5)-H2 -> 0 | I1: =IF(F1<>0,IFERROR(H1/F1,"-"),"-") -> - | J1: =SUM(J4:J5)-J2 -> 0 | K1: =SUM(K4:K5)-K2 -> 0 | L1: =IF(H1<>0,IFERROR(K1/H1,"-"),"-") -> - | M1: =IF(J1<>0,IFERROR(K1/J1,"-"),"-") -> -
C2: =IF(VALUE(C4)=0,"ВР(ОБ)",IF(VALUE(C4)>540,"ошибка",IF(VALUE(C4)<521,"ошибка",C4&"ОБ"))) ->  | D2: =SUMIF($C4:$C5,$C4,D4:D5) -> 0 | E2: =SUMIF($C4:$C5,$C4,E4:E5) -> 0 | F2: =SUMIF($C4:$C5,$C4,F4:F5) -> 0 | G2: - | H2: =SUMIF($C4:$C5,$C4,H4:H5) -> 0 | I2: - | J2: =SUMIF($C4:$C5,$C4,J4:J5) -> 0 | K2: =SUMIF($C4:$C5,$C4,K4:K5) -> 0 | L2: - | M2: -
C3: УС*** | D3: =IF(D1<>0,IFERROR(D2/D1,"-"),"-") -> - | E3: =IF(E1<>0,IFERROR(E2/E1,"-"),"-") -> - | F3: =IF(F1<>0,IFERROR(F2/F1,"-"),"-") -> - | G3: - | H3: =IF(H1<>0,IFERROR(H2/H1,"-"),"-") -> - | I3: - | J3: =IF(J1<>0,IFERROR(J2/J1,"-"),"-") -> - | K3: =IF(K1<>0,IFERROR(K2/K1,"-"),"-") -> - | L3: - | M3: -
C4: #parm2Tmplt1 | G4: - | I4: - | L4: - | M4: -
G5: - | I5: - | L5: - | M5: -
G6: - | I6: - | L6: - | M6: -
G7: - | I7: - | L7: - | M7: -
G8: - | I8: - | L8: - | M8: -
G9: - | I9: - | L9: - | M9: -
G10: - | I10: - | L10: - | M10: -
G11: - | I11: - | L11: - | M11: -
G12: - | I12: - | L12: - | M12: -
G13: - | I13: - | L13: - | M13: -
G14: - | I14: - | L14: - | M14: -
G15: - | I15: - | L15: - | M15: -
G16: - | I16: - | L16: - | M16: -
G17: - | I17: - | L17: - | M17: -
G18: - | I18: - | L18: - | M18: -
G19: - | I19: - | L19: - | M19: -
G20: - | I20: - | L20: - | M20: -
G21: - | I21: - | L21: - | M21: -
G22: - | I22: - | L22: - | M22: -
G23: - | I23: - | L23: - | M23: -
G24: - | I24: - | L24: - | M24: -
G25: - | I25: - | L25: - | M25: -
G26: - | I26: - | L26: - | M26: -
G27: - | I27: - | L27: - | M27: -
G28: - | I28: - | L28: - | M28: -
G29: - | I29: - | L29: - | M29: -
G30: - | I30: - | L30: - | M30: -
G31: - | I31: - | L31: - | M31: -
G32: - | I32: - | L32: - | M32: -
G33: - | I33: - | L33: - | M33: -
G34: - | I34: - | L34: - | M34: -
G35: - | I35: - | L35: - | M35: -
G36: - | I36: - | L36: - | M36: -
G37: - | I37: - | L37: - | M37: -
G38: - | I38: - | L38: - | M38: -
G39: - | I39: - | L39: - | M39: -
G40: - | I40: - | L40: - | M40: -
G41: - | I41: - | L41: - | M41: -
G42: - | I42: - | L42: - | M42: -
G43: - | I43: - | L43: - | M43: -
G44: - | I44: - | L44: - | M44: -
G45: - | I45: - | L45: - | M45: -
G46: - | I46: - | L46: - | M46: -
G47: - | I47: - | L47: - | M47: -
G48: - | I48: - | L48: - | M48: -
G49: - | I49: - | L49: - | M49: -
G50: - | I50: - | L50: - | M50: -
G51: - | I51: - | L51: - | M51: -
G52: - | I52: - | L52: - | M52: -
G53: - | I53: - | L53: - | M53: -
G54: - | I54: - | L54: - | M54: -
G55: - | I55: - | L55: - | M55: -
G56: - | I56: - | L56: - | M56: -
G57: - | I57: - | L57: - | M57: -
G58: - | I58: - | L58: - | M58: -
G59: - | I59: - | L59: - | M59: -
G60: - | I60: - | L60: - | M60: -
G61: - | I61: - | L61: - | M61: -
G62: - | I62: - | L62: - | M62: -
G63: - | I63: - | L63: - | M63: -
G64: - | I64: - | L64: - | M64: -
G65: - | I65: - | L65: - | M65: -
G66: - | I66: - | L66: - | M66: -
G67: - | I67: - | L67: - | M67: -
G68: - | I68: - | L68: - | M68: -
G69: - | I69: - | L69: - | M69: -
G70: - | I70: - | L70: - | M70: -
G71: - | I71: - | L71: - | M71: -
G72: - | I72: - | L72: - | M72: -
G73: - | I73: - | L73: - | M73: -
G74: - | I74: - | L74: - | M74: -
G75: - | I75: - | L75: - | M75: -
G76: - | I76: - | L76: - | M76: -
G77: - | I77: - | L77: - | M77: -
G78: - | I78: - | L78: - | M78: -
G79: - | I79: - | L79: - | M79: -
G80: - | I80: - | L80: - | M80: -
G81: - | I81: - | L81: - | M81: -
G82: - | I82: - | L82: - | M82: -
G83: - | I83: - | L83: - | M83: -
G84: - | I84: - | L84: - | M84: -
G85: - | I85: - | L85: - | M85: -
G86: - | I86: - | L86: - | M86: -
G87: - | I87: - | L87: - | M87: -
G88: - | I88: - | L88: - | M88: -
G89: - | I89: - | L89: - | M89: -
G90: - | I90: - | L90: - | M90: -
G91: - | I91: - | L91: - | M91: -
G92: - | I92: - | L92: - | M92: -
G93: - | I93: - | L93: - | M93: -
G94: - | I94: - | L94: - | M94: -
G95: - | I95: - | L95: - | M95: -
G96: - | I96: - | L96: - | M96: -
G97: - | I97: - | L97: - | M97: -
G98: - | I98: - | L98: - | M98: -
G99: - | I99: - | L99: - | M99: -
G100: - | I100: - | L100: - | M100: -
G101: - | I101: - | L101: - | M101: -
G102: - | I102: - | L102: - | M102: -
G103: - | I103: - | L103: - | M103: -
G104: - | I104: - | L104: - | M104: -
G105: - | I105: - | L105: - | M105: -
G106: - | I106: - | L106: - | M106: -
G107: - | I107: - | L107: - | M107: -
G108: - | I108: - | L108: - | M108: -
G109: - | I109: - | L109: - | M109: -
G110: - | I110: - | L110: - | M110: -
G111: - | I111: - | L111: - | M111: -
G112: - | I112: - | L112: - | M112: -
G113: - | I113: - | L113: - | M113: -
G114: - | I114: - | L114: - | M114: -
G115: - | I115: - | L115: - | M115: -
G116: - | I116: - | L116: - | M116: -
G117: - | I117: - | L117: - | M117: -
G118: - | I118: - | L118: - | M118: -
G119: - | I119: - | L119: - | M119: -
G120: - | I120: - | L120: - | M120: -
G121: - | I121: - | L121: - | M121: -
G122: - | I122: - | L122: - | M122: -
G123: - | I123: - | L123: - | M123: -
G124: - | I124: - | L124: - | M124: -
G125: - | I125: - | L125: - | M125: -
G126: - | I126: - | L126: - | M126: -
G127: - | I127: - | L127: - | M127: -
G128: - | I128: - | L128: - | M128: -
G129: - | I129: - | L129: - | M129: -
G130: - | I130: - | L130: - | M130: -
G131: - | I131: - | L131: - | M131: -
G132: - | I132: - | L132: - | M132: -
G133: - | I133: - | L133: - | M133: -
G134: - | I134: - | L134: - | M134: -
G135: - | I135: - | L135: - | M135: -
G136: - | I136: - | L136: - | M136: -
G137: - | I137: - | L137: - | M137: -
G138: - | I138: - | L138: - | M138: -
G139: - | I139: - | L139: - | M139: -
G140: - | I140: - | L140: - | M140: -
G141: - | I141: - | L141: - | M141: -
G142: - | I142: - | L142: - | M142: -
G143: - | I143: - | L143: - | M143: -
G144: - | I144: - | L144: - | M144: -
G145: - | I145: - | L145: - | M145: -
G146: - | I146: - | L146: - | M146: -
G147: - | I147: - | L147: - | M147: -
G148: - | I148: - | L148: - | M148: -
G149: - | I149: - | L149: - | M149: -
G150: - | I150: - | L150: - | M150: -
G151: - | I151: - | L151: - | M151: -
G152: - | I152: - | L152: - | M152: -
G153: - | I153: - | L153: - | M153: -
G154: - | I154: - | L154: - | M154: -
G155: - | I155: - | L155: - | M155: -
G156: - | I156: - | L156: - | M156: -
G157: - | I157: - | L157: - | M157: -
G158: - | I158: - | L158: - | M158: -
G159: - | I159: - | L159: - | M159: -
G160: - | I160: - | L160: - | M160: -
G161: - | I161: - | L161: - | M161: -
G162: - | I162: - | L162: - | M162: -
G163: - | I163: - | L163: - | M163: -
G164: - | I164: - | L164: - | M164: -
G165: - | I165: - | L165: - | M165: -
G166: - | I166: - | L166: - | M166: -
G167: - | I167: - | L167: - | M167: -
G168: - | I168: - | L168: - | M168: -
G169: - | I169: - | L169: - | M169: -
G170: - | I170: - | L170: - | M170: -
G171: - | I171: - | L171: - | M171: -
G172: - | I172: - | L172: - | M172: -
G173: - | I173: - | L173: - | M173: -
G174: - | I174: - | L174: - | M174: -
G175: - | I175: - | L175: - | M175: -
G176: - | I176: - | L176: - | M176: -
G177: - | I177: - | L177: - | M177: -
G178: - | I178: - | L178: - | M178: -
